fUST/lending_fUST_20240621
["ID","MTS","AMOUNT","RATE_DAILY","PERIOD"]
[329997284,1718908249628,-500.0,0.00055616,120]
[329997285,1718908249638,-387.9305066,0.00055616,120]
[329997286,1718908249647,-500.0,0.00055616,120]
[329997287,1718908249657,-500.0,0.00055616,120]
[329997288,1718908249666,-500.0,0.00055616,120]
[329997289,1718908249675,-500.0,0.00055616,120]
[329997290,1718908249684,-500.0,0.00055616,120]
[329997291,1718908249694,-591.17261421,0.00055616,120]
[329997292,1718908249703,-500.0,0.00055616,120]
[329997293,1718908249713,-500.0,0.00055616,120]
[329997294,1718908249722,-515.8267275,0.00055616,120]
[329997295,1718908249732,-500.0,0.00055616,120]
[329997296,1718908249741,-500.0,0.00055616,120]
[329997297,1718908249751,-515.14656123,0.00055616,30]
[329997298,1718908249761,-500.0,0.00055616,120]
[329997299,1718908249771,-500.0,0.00055616,120]
[329997300,1718908249780,-500.0,0.00055616,120]
[329997301,1718908249790,-500.0,0.00055616,120]
[329997302,1718908249799,-500.0,0.00055616,120]
[329997303,1718908249809,-500.0,0.00055616,120]
[329997304,1718908249819,-500.0,0.00055616,120]
[329997305,1718908249828,-463.66807264,0.00055616,120]
[329997306,1718908249837,-656.39,0.00055616,120]
[329997307,1718908249846,-1932.03,0.00055616,120]
[329997308,1718908249855,-629.57854272,0.00055616,120]
[329997309,1718908249864,-403.61672644,0.00055616,120]
[329997310,1718908249873,-500.0,0.00055616,120]
[329997311,1718908249883,-243.10951319,0.00055616,120]
[329997312,1718908249892,-500.0,0.00055616,120]
[329997313,1718908249902,-151.0,0.00055616,120]
[329997314,1718908249911,-420.58894678,0.00055616,120]
[329997315,1718908249921,-500.0,0.00055616,120]
[329997316,1718908249931,-250.50075713,0.00055616,120]
[329997317,1718908249940,-500.0,0.00055616,120]
[329997318,1718908249949,-500.0,0.00055616,120]
[329997319,1718908249959,-500.0,0.00055616,120]
[329997320,1718908250038,-506.63225553,0.00055616,120]
[329997321,1718908250048,-500.0,0.00055616,120]
[329997322,1718908250058,-500.0,0.00055616,120]
[329997323,1718908250067,-151.0,0.00055616,120]
[329997324,1718908250076,-495.33982187,0.00055616,120]
[329997325,1718908250086,-500.0,0.00055616,120]
[329997326,1718908250095,-500.0,0.00055616,120]
[329997327,1718908250105,-500.0,0.00055616,120]
[329997328,1718908250114,-584.84056779,0.00055616,120]
[329997329,1718908250124,-500.0,0.00055616,120]
[329997330,1718908250133,-500.0,0.00055616,120]
[329997331,1718908250142,-500.0,0.00055616,2]
[329997332,1718908250151,-1621.33,0.00055616,120]
[329997333,1718908250161,-500.0,0.00055616,120]
[329997334,1718908250171,-151.0,0.00055616,120]
[329997335,1718908250180,-508.0,0.00055616,120]
[329997336,1718908250190,-500.0,0.00055616,120]
[329997337,1718908250199,-500.0,0.00055616,120]
[329997338,1718908250208,-500.0,0.00055616,120]
[329997339,1718908250217,-500.0,0.00055616,120]
[329997340,1718908250226,-500.0,0.00055616,120]
[329997341,1718908250238,-500.0,0.00055616,120]
[329997342,1718908250247,-2551.71,0.00055616,120]
[329997343,1718908250256,-500.0,0.00055616,120]
[329997344,1718908250265,-502.9,0.00055616,120]
[329997345,1718908250275,-500.0,0.00055616,120]
[329997346,1718908250284,-500.0,0.00055616,120]
[329997347,1718908250294,-1043.19,0.00055616,120]
[329997348,1718908250303,-151.0,0.00055616,120]
[329997349,1718908250316,-500.0,0.00055616,120]
[329997350,1718908250326,-151.0,0.00055616,120]
[329997351,1718908250335,-416.034579,0.00055616,120]
[329997352,1718908250345,-154.21606346,0.00055616,120]
[329997353,1718908250354,-416.034579,0.00055616,120]
[329997354,1718908250364,-500.0,0.00055616,120]
[329997355,1718908250373,-896.12,0.00055616,120]
[329997356,1718908250381,-500.0,0.00055616,120]
[329997357,1718908250393,-500.0,0.00055616,120]
[329997358,1718908250403,-1585.31,0.00055616,120]
[329997359,1718908250412,-6888.11,0.00055616,120]
[329997360,1718908250421,-500.0,0.00055616,120]
[329997361,1718908250430,-151.0,0.00055616,120]
[329997362,1718908250439,-500.0,0.00055616,120]
[329997363,1718908250449,-500.0,0.00055616,120]
[329997364,1718908250458,-500.0,0.00055616,120]
[329997365,1718908250467,-151.0,0.00055616,120]
[329997366,1718908250477,-500.0,0.00055616,120]
[329997367,1718908250488,-6419.45,0.00055616,120]
[329997368,1718908250497,-500.0,0.00055616,120]
[329997369,1718908250506,-500.0,0.00055616,120]
[329997370,1718908250516,-1347.64,0.00055616,120]
[329997371,1718908250526,-500.0,0.00055616,7]
[329997372,1718908250535,-500.0,0.00055616,120]
[329997373,1718908250547,-500.0,0.00055616,120]
[329997374,1718908250555,-151.0,0.00055616,120]
[329997375,1718908250565,-500.0,0.00055616,120]
[329997376,1718908250575,-500.0,0.00055616,120]
[329997377,1718908250584,-151.0,0.00055616,120]
[329997378,1718908250593,-151.0,0.00055616,120]
[329997379,1718908250603,-4333.79,0.00055616,120]
[329997380,1718908250613,-500.0,0.00055616,120]
[329997381,1718908250622,-326.979462,0.00055616,120]
[329997382,1718908250631,-151.0,0.00055616,120]
[329997383,1718908250641,-500.0,0.00055616,120]
[329997384,1718908250651,-500.0,0.00055616,120]
[329997385,1718908250660,-326.979462,0.00055616,120]
[329997386,1718908250669,-500.0,0.00055616,120]
[329997387,1718908250678,-500.0,0.00055616,120]
[329997388,1718908250687,-500.0,0.00055616,120]
[329997389,1718908250697,-500.0,0.00055616,120]
[329997390,1718908250706,-530.35804425,0.00055616,120]
[329997391,1718908250717,-151.0,0.00055616,120]
[329997392,1718908250726,-500.0,0.00055616,120]
[329997393,1718908250738,-500.0,0.00055616,120]
[329997394,1718908250747,-500.0,0.00055616,120]
[329997395,1718908250756,-3077.09,0.00055616,120]
[329997396,1718908250768,-500.0,0.00055616,120]
[329997397,1718908250778,-500.0,0.00055616,120]
[329997398,1718908250787,-1358.92,0.00055616,120]
[329997399,1718908250796,-500.0,0.00055616,120]
[329997400,1718908250805,-500.0,0.00055616,120]
[329997401,1718908250814,-157.17599632,0.00055616,120]
[329997402,1718908250823,-500.0,0.00055616,120]
[329997403,1718908250831,-500.0,0.00055616,120]
[329997404,1718908250840,-500.0,0.00055616,120]
[329997405,1718908250849,-500.0,0.00055616,120]
[329997406,1718908250858,-500.0,0.00055616,120]
[329997407,1718908250868,-534.37497337,0.00055616,120]
[329997408,1718908250877,-500.0,0.00055616,120]
[329997409,1718908250887,-500.0,0.00055616,120]
[329997410,1718908250896,-500.0,0.00055616,120]
[329997411,1718908250906,-500.0,0.00055616,120]
[329997412,1718908250915,-500.0,0.00055616,120]
[329997413,1718908250924,-3179.33,0.00055616,120]
[329997414,1718908250934,-20138.58,0.00055616,120]
[329997415,1718908250943,-528.51,0.00055616,120]
[329997416,1718908250952,-500.0,0.00055616,120]
[329997417,1718908250961,-500.0,0.00055616,120]
[329997418,1718908250970,-151.0,0.00055616,120]
[329997419,1718908250979,-500.0,0.00055616,120]
[329997420,1718908250990,-2730.03,0.00055616,120]
[329997421,1718908250999,-1804.7,0.00055616,21]
[329997422,1718908251009,-1556.9,0.00055616,120]
[329997423,1718908251018,-832.61,0.00055616,120]
[329997424,1718908251027,-3428.45,0.00055616,120]
[329997425,1718908251036,-500.0,0.00055616,60]
[329997426,1718908251045,-500.0,0.00055616,120]
[329997427,1718908251054,-500.0,0.00055616,120]
[329997428,1718908251063,-500.0,0.00055616,120]
[329997429,1718908251072,-500.0,0.00055616,120]
[329997430,1718908251081,-500.0,0.00055616,120]
[329997431,1718908251090,-500.0,0.00055616,90]
[329997432,1718908251099,-591.5,0.00055616,120]
[329997433,1718908251109,-250.0,0.00055616,120]
[329997434,1718908251118,-500.0,0.00055616,120]
[329997435,1718908251127,-682.14,0.00055616,120]
[329997436,1718908251136,-500.0,0.00055616,120]
[329997437,1718908251145,-172.93748378,0.00055616,120]
[329997438,1718908251154,-507.51918871,0.00055616,120]
[329997439,1718908251163,-500.0,0.00055616,120]
[329997440,1718908251172,-500.0,0.00055616,120]
[329997441,1718908251181,-1673.596138,0.00055616,120]
[329997442,1718908251190,-500.0,0.00055616,120]
[329997443,1718908251200,-500.0,0.00055616,120]
[329997444,1718908251209,-3072.74,0.00055616,120]
[329997445,1718908251218,-500.0,0.00055616,120]
[329997446,1718908251227,-500.0,0.00055616,120]
[329997447,1718908251238,-1673.596138,0.00055616,120]
[329997448,1718908251247,-500.0,0.00055616,120]
[329997449,1718908251256,-500.0,0.00055616,120]
[329997450,1718908251265,-1897.6,0.00055616,120]
[329997451,1718908251275,-611.83,0.00055616,120]
[329997452,1718908251283,-5375.69,0.00055616,120]
[329997453,1718908251293,-500.0,0.00055616,120]
[329997454,1718908251302,-500.0,0.00055616,120]
[329997455,1718908251317,-500.0,0.00055616,120]
[329997456,1718908251326,-500.0,0.00055616,120]
[329997457,1718908251336,-2709.41,0.00055616,120]
[329997458,1718908251408,-151.0,0.00055616,120]
[329997459,1718908251418,-500.0,0.00055616,120]
[329997460,1718908251427,-500.0,0.00055616,120]
[329997461,1718908251436,-151.0,0.00055616,120]
[329997462,1718908251446,-624.731127,0.00055616,120]
[329997463,1718908251455,-500.0,0.00055616,120]
[329997464,1718908251464,-151.0,0.00055616,120]
[329997465,1718908251473,-624.731127,0.00055616,120]
[329997466,1718908251482,-500.0,0.00055616,120]
[329997467,1718908251491,-500.0,0.00055616,120]
[329997468,1718908251500,-506.26569331,0.00055616,120]
[329997469,1718908251509,-152.62,0.0005579,120]
[329997470,1718908251518,-155.64,0.0005579,120]
[329997471,1718908251528,-171.26,0.0005579,120]
[329997472,1718908251537,-160.0,0.00055815,3]
[329997473,1718908251546,-264.44,0.0005588,62]
[329997474,1718908251555,-500.0,0.00055889,120]
[329997475,1718908251564,-500.0,0.00055889,120]
[329997476,1718908251574,-500.0,0.00055889,120]
[329997477,1718908251583,-670.19,0.00055889,120]
[329997478,1718908251592,-670.19,0.00055889,120]
[329997479,1718908251601,-670.19,0.00055889,120]
[329997480,1718908251610,-710.62,0.0005589,120]
[329997481,1718908251620,-500.0,0.0005589,120]
[329997482,1718908251629,-500.0,0.0005589,120]
[329997483,1718908251638,-500.0,0.0005589,120]
[329997484,1718908251648,-200.0,0.0005589,7]
[329997485,1718908251657,-500.0,0.0005589,120]
[329997486,1718908251665,-500.0,0.0005589,120]
[329997487,1718908251675,-640.27,0.0005589,120]
[329997488,1718908251684,-500.0,0.0005589,120]
[329997489,1718908251693,-533.55,0.0005589,2]
[329997490,1718908251702,-500.0,0.0005589,120]
[329997491,1718908251711,-500.0,0.0005589,120]
[329997492,1718908251721,-500.0,0.0005589,7]
[329997493,1718908251730,-2843.41,0.0005589,60]
[329997494,1718908251739,-500.0,0.0005589,120]
[329997495,1718908251748,-611.96,0.0005589,120]
[329997496,1718908251758,-500.0,0.0005589,120]
[329997497,1718908251767,-500.0,0.0005589,120]
[329997498,1718908251776,-500.0,0.0005589,2]
[329997499,1718908251785,-500.0,0.0005589,120]
[329997500,1718908251794,-500.0,0.0005589,120]
[329997501,1718908251803,-151.0,0.0005589,120]
[329997502,1718908251812,-500.0,0.0005589,120]
[329997503,1718908251822,-500.0,0.0005589,120]
[329997504,1718908251831,-500.0,0.0005589,120]
[329997505,1718908251841,-500.0,0.0005589,120]
[329997506,1718908251850,-548.65963852,0.0005589,120]
[329997507,1718908251859,-500.0,0.0005589,120]
[329997508,1718908251869,-500.0,0.0005589,120]
[329997509,1718908251878,-506.12723099,0.0005589,120]
[329997510,1718908251888,-500.0,0.0005589,120]
[329997511,1718908251898,-500.0,0.0005589,120]
[329997512,1718908251908,-500.0,0.0005589,120]
[329997513,1718908251918,-500.0,0.0005589,120]
[329997514,1718908251928,-505.17765812,0.0005589,120]
[329997515,1718908251937,-500.0,0.0005589,120]
[329997516,1718908251946,-500.0,0.0005589,120]
[329997517,1718908251955,-500.0,0.0005589,120]
[329997518,1718908251966,-656.39,0.0005589,120]
[329997519,1718908251975,-1932.03,0.0005589,120]
[329997520,1718908251985,-500.0,0.0005589,120]
[329997521,1718908251993,-500.0,0.0005589,120]
[329997522,1718908252003,-500.0,0.0005589,120]
[329997523,1718908252012,-500.0,0.0005589,120]
[329997524,1718908252022,-500.0,0.0005589,120]
[329997525,1718908252031,-500.0,0.0005589,120]
[329997526,1718908252041,-500.0,0.0005589,120]
[329997527,1718908252050,-151.0,0.0005589,120]
[329997528,1718908252059,-500.0,0.0005589,120]
[329997529,1718908252069,-610.03,0.0005589,120]
[329997530,1718908252079,-249.99839687,0.0005589,120]
[329997531,1718908252088,-500.0,0.0005589,120]
[329997532,1718908252098,-500.0,0.0005589,120]
[329997533,1718908252107,-500.0,0.0005589,2]
[329997534,1718908252116,-1621.33,0.0005589,120]
[329997535,1718908252125,-500.0,0.0005589,120]
[329997536,1718908252135,-151.0,0.0005589,120]
[329997537,1718908252144,-508.0,0.0005589,120]
[329997538,1718908252154,-151.0,0.0005589,120]
[329997539,1718908252164,-500.0,0.0005589,120]
[329997540,1718908252176,-500.0,0.0005589,120]
[329997541,1718908252185,-151.0,0.0005589,120]
[329997542,1718908252196,-500.0,0.0005589,120]
[329997543,1718908252206,-593.0882911,0.0005589,120]
[329997544,1718908252215,-500.0,0.0005589,120]
[329997545,1718908252225,-307.1616912,0.0005589,120]
[329997546,1718908252234,-712.2149,0.0005589,120]
[329997547,1718908252244,-2551.71,0.0005589,120]
[329997548,1718908252253,-712.2149,0.0005589,120]
[329997549,1718908252263,-500.0,0.0005589,120]
[329997550,1718908252272,-502.9,0.0005589,120]
[329997551,1718908252282,-500.0,0.0005589,120]
[329997552,1718908252292,-500.0,0.0005589,120]
[329997553,1718908252301,-1043.19,0.0005589,120]
[329997554,1718908252311,-500.0,0.0005589,120]
[329997555,1718908252322,-151.0,0.0005589,120]
[329997556,1718908252333,-151.0,0.0005589,120]
[329997557,1718908252343,-151.0,0.0005589,120]
[329997558,1718908252353,-416.034579,0.0005589,120]
[329997559,1718908252363,-416.034579,0.0005589,120]
[329997560,1718908252372,-500.0,0.0005589,120]
[329997561,1718908252382,-151.0,0.0005589,120]
[329997562,1718908252394,-896.12,0.0005589,120]
[329997563,1718908252404,-500.0,0.0005589,120]
[329997564,1718908252413,-500.0,0.0005589,120]
[329997565,1718908252423,-1585.31,0.0005589,120]
[329997566,1718908252431,-6888.11,0.0005589,120]
[329997567,1718908252440,-500.0,0.0005589,120]
[329997568,1718908252449,-151.0,0.0005589,120]
[329997569,1718908252459,-513.00246972,0.0005589,120]
[329997570,1718908252468,-500.0,0.0005589,120]
[329997571,1718908252477,-500.0,0.0005589,120]
[329997572,1718908252487,-500.0,0.0005589,120]
[329997573,1718908252496,-6419.45,0.0005589,120]
[329997574,1718908252505,-366.48415421,0.0005589,120]
[329997575,1718908252514,-500.0,0.0005589,120]
[329997576,1718908252523,-1347.64,0.0005589,120]
[329997577,1718908252533,-500.0,0.0005589,7]
[329997578,1718908252542,-500.0,0.0005589,120]
[329997579,1718908252551,-500.0,0.0005589,120]
[329997580,1718908252560,-151.0,0.0005589,120]
[329997581,1718908252570,-500.0,0.0005589,120]
[329997582,1718908252579,-500.0,0.0005589,120]
[329997583,1718908252588,-151.0,0.0005589,120]
[329997584,1718908252598,-4333.79,0.0005589,120]
[329997585,1718908252668,-500.0,0.0005589,120]
[329997586,1718908252677,-326.979462,0.0005589,120]
[329997587,1718908252687,-500.0,0.0005589,120]
[329997588,1718908252696,-326.979462,0.0005589,120]
[329997589,1718908252707,-500.0,0.0005589,120]
[329997590,1718908252716,-500.0,0.0005589,120]
[329997591,1718908252725,-500.0,0.0005589,120]
[329997592,1718908252735,-151.0,0.0005589,120]
[329997593,1718908252745,-500.0,0.0005589,120]
[329997594,1718908252755,-500.0,0.0005589,120]
[329997595,1718908252764,-500.0,0.0005589,120]
[329997596,1718908252774,-3077.09,0.0005589,120]
[329997597,1718908252784,-500.0,0.0005589,120]
[329997598,1718908252793,-500.0,0.0005589,120]
[329997599,1718908252802,-1358.92,0.0005589,120]
[329997600,1718908252812,-500.0,0.0005589,120]
[329997601,1718908252823,-500.0,0.0005589,120]
[329997602,1718908252833,-500.0,0.0005589,120]
[329997603,1718908252842,-500.0,0.0005589,120]
[329997604,1718908252852,-510.77103045,0.0005589,120]
[329997605,1718908252861,-440.22609641,0.0005589,120]
[329997606,1718908252871,-500.0,0.0005589,120]
[329997607,1718908252880,-500.0,0.0005589,120]
[329997608,1718908252890,-649.0902292,0.0005589,120]
[329997609,1718908252900,-3179.33,0.0005589,120]
[329997610,1718908252910,-20138.58,0.0005589,120]
[329997611,1718908252920,-528.51,0.0005589,120]
[329997612,1718908252930,-500.0,0.0005589,120]
[329997613,1718908252939,-520.15783121,0.0005589,120]
[329997614,1718908252949,-151.0,0.0005589,120]
[329997615,1718908252960,-500.0,0.0005589,120]
[329997616,1718908252969,-2730.03,0.0005589,120]
[329997617,1718908252981,-1804.7,0.0005589,21]
[329997618,1718908252991,-1556.9,0.0005589,120]
[329997619,1718908253000,-832.61,0.0005589,120]
[329997620,1718908253011,-3428.45,0.0005589,120]
[329997621,1718908253020,-500.0,0.0005589,60]
[329997622,1718908253029,-500.0,0.0005589,120]
[329997623,1718908253038,-500.0,0.0005589,120]
[329997624,1718908253047,-500.0,0.0005589,120]
[329997625,1718908253057,-500.0,0.0005589,120]
[329997626,1718908253067,-500.0,0.0005589,90]
[329997627,1718908253076,-591.5,0.0005589,120]
[329997628,1718908253085,-250.0,0.0005589,120]
[329997629,1718908253094,-500.0,0.0005589,120]
[329997630,1718908253104,-682.14,0.0005589,120]
[329997631,1718908253113,-500.0,0.0005589,120]
[329997632,1718908253123,-641.70776834,0.0005589,120]
[329997633,1718908253132,-1673.596138,0.0005589,120]
[329997634,1718908253142,-500.0,0.0005589,120]
[329997635,1718908253151,-500.0,0.0005589,120]
[329997636,1718908253160,-3072.74,0.0005589,120]
[329997637,1718908253170,-516.3552209,0.0005589,120]
[329997638,1718908253179,-500.0,0.0005589,120]
[329997639,1718908253188,-500.0,0.0005589,120]
[329997640,1718908253198,-1673.596138,0.0005589,120]
[329997641,1718908253207,-500.0,0.0005589,120]
[329997642,1718908253217,-1897.6,0.0005589,120]
[329997643,1718908253226,-611.83,0.0005589,120]
[329997644,1718908253238,-5375.69,0.0005589,120]
[329997645,1718908253246,-500.0,0.0005589,120]
[329997646,1718908253255,-500.0,0.0005589,120]
[329997647,1718908253264,-500.0,0.0005589,120]
[329997648,1718908253273,-2709.41,0.0005589,120]
[329997649,1718908253282,-151.0,0.0005589,120]
[329997650,1718908253291,-500.0,0.0005589,120]
[329997651,1718908253301,-500.0,0.0005589,120]
[329997652,1718908253315,-151.0,0.0005589,120]
[329997653,1718908253324,-624.731127,0.0005589,120]
[329997654,1718908253333,-500.0,0.0005589,120]
[329997655,1718908253343,-151.0,0.0005589,120]
[329997656,1718908253353,-624.731127,0.0005589,120]
[329997657,1718908253363,-500.0,0.0005589,120]
[329997658,1718908253372,-500.0,0.0005589,120]
[329997659,1718908253381,-153.0,0.00056133,62]
[329997660,1718908253391,-187.0,0.00056133,62]
[329997661,1718908253401,-228.0,0.00056133,62]
[329997662,1718908253410,-225.0,0.00056133,62]
[329997663,1718908253420,-214.67,0.00056133,62]
[329997664,1718908253431,-153.0,0.00056143,62]
[329997665,1718908253441,-187.0,0.00056143,62]
[329997666,1718908253450,-228.0,0.00056143,62]
[329997667,1718908253459,-225.0,0.00056143,62]
[329997668,1718908253471,-150.5,0.00056143,62]
[329997669,1718908253480,-244.5,0.00056153,62]
[329997670,1718908253491,-153.0,0.00056153,62]
[329997671,1718908253500,-187.0,0.00056153,62]
[329997672,1718908253510,-228.0,0.00056153,62]
[329997673,1718908253519,-225.0,0.00056153,62]
[329997674,1718908253530,-150.5,0.00056153,62]
[329997675,1718908253540,-151.0,0.00056163,120]
[329997676,1718908253550,-500.0,0.00056163,120]
[329997677,1718908253559,-500.0,0.00056163,120]
[329997678,1718908253568,-166.56,0.00056163,120]
[329997679,1718908253580,-670.19,0.00056163,120]
[329997680,1718908253589,-670.19,0.00056163,120]
[329997681,1718908253598,-670.19,0.00056163,120]
[329997682,1718908253608,-670.19,0.00056163,120]
[329997683,1718908253617,-670.19,0.00056163,120]
[329997684,1718908253626,-670.19,0.00056163,120]
[329997685,1718908253635,-670.19,0.00056163,120]
[329997686,1718908253644,-670.32950714,0.00056163,120]
[329997687,1718908253653,-173.35286256,0.00056164,61]
[329997688,1718908253662,-151.0,0.00056164,120]
[329997689,1718908253671,-710.62,0.00056164,120]
[329997690,1718908253680,-513.5838268,0.00056164,120]
[329997691,1718908253690,-500.0,0.00056164,120]
[329997692,1718908253699,-500.0,0.00056164,120]
[329997693,1718908253708,-200.0,0.00056164,7]
[329997694,1718908253717,-151.0,0.00056164,120]
[329997695,1718908253727,-500.0,0.00056164,120]
[329997696,1718908253737,-375.87149696,0.00056164,120]
[329997697,1718908253746,-640.27,0.00056164,120]
[329997698,1718908253756,-500.0,0.00056164,120]
[329997699,1718908253769,-533.55,0.00056164,2]
[329997700,1718908253778,-151.0,0.00056164,120]
[329997701,1718908253788,-151.0,0.00056164,120]
[329997702,1718908253856,-500.0,0.00056164,120]
[329997703,1718908253867,-500.0,0.00056164,120]
[329997704,1718908253876,-309.1719836,0.00056164,7]
[329997705,1718908253886,-2843.41,0.00056164,60]
[329997706,1718908253895,-500.0,0.00056164,120]
[329997707,1718908253904,-611.96,0.00056164,120]
[329997708,1718908253913,-500.0,0.00056164,120]
[329997709,1718908253923,-500.0,0.00056164,120]
[329997710,1718908253933,-500.0,0.00056164,2]
[329997711,1718908253943,-500.0,0.00056164,120]
[329997712,1718908253952,-500.0,0.00056164,120]
[329997713,1718908253961,-151.0,0.00056164,120]
[329997714,1718908253971,-500.0,0.00056164,120]
[329997715,1718908253982,-500.0,0.00056164,120]
[329997716,1718908253991,-500.0,0.00056164,120]
[329997717,1718908254001,-510.14293151,0.00056164,120]
[329997718,1718908254010,-500.0,0.00056164,120]
[329997719,1718908254020,-500.0,0.00056164,120]
[329997720,1718908254031,-500.0,0.00056164,120]
[329997721,1718908254040,-542.74807735,0.00056164,120]
[329997722,1718908254049,-500.0,0.00056164,120]
[329997723,1718908254059,-500.0,0.00056164,120]
[329997724,1718908254069,-500.0,0.00056164,120]
[329997725,1718908254078,-500.0,0.00056164,120]
[329997726,1718908254088,-656.39,0.00056164,120]
[329997727,1718908254097,-1932.03,0.00056164,120]
[329997728,1718908254107,-500.0,0.00056164,120]
[329997729,1718908254117,-500.0,0.00056164,120]
[329997730,1718908254126,-500.0,0.00056164,120]
[329997731,1718908254135,-500.0,0.00056164,120]
[329997732,1718908254145,-452.94981873,0.00056164,120]
[329997733,1718908254155,-500.0,0.00056164,120]
[329997734,1718908254165,-500.0,0.00056164,120]
[329997735,1718908254174,-419.13499553,0.00056164,120]
[329997736,1718908254184,-500.0,0.00056164,120]
[329997737,1718908254193,-453.90398681,0.00056164,120]
[329997738,1718908254204,-500.0,0.00056164,2]
[329997739,1718908254213,-1621.33,0.00056164,120]
[329997740,1718908254223,-500.0,0.00056164,120]
[329997741,1718908254232,-508.0,0.00056164,120]
[329997742,1718908254242,-151.0,0.00056164,120]
[329997743,1718908254252,-500.0,0.00056164,120]
[329997744,1718908254262,-500.0,0.00056164,120]
[329997745,1718908254271,-151.0,0.00056164,120]
[329997746,1718908254281,-500.0,0.00056164,120]
[329997747,1718908254291,-500.0,0.00056164,120]
[329997748,1718908254301,-712.2149,0.00056164,120]
[329997749,1718908254311,-2551.71,0.00056164,120]
[329997750,1718908254323,-712.2149,0.00056164,120]
[329997751,1718908254332,-500.0,0.00056164,120]
[329997752,1718908254342,-502.9,0.00056164,120]
[329997753,1718908254352,-500.0,0.00056164,120]
[329997754,1718908254363,-500.0,0.00056164,120]
[329997755,1718908254372,-1043.19,0.00056164,120]
[329997756,1718908254382,-500.0,0.00056164,120]
[329997757,1718908254391,-151.0,0.00056164,120]
[329997758,1718908254403,-232.075312,0.00056164,120]
[329997759,1718908254412,-416.034579,0.00056164,120]
[329997760,1718908254422,-416.034579,0.00056164,120]
[329997761,1718908254431,-500.0,0.00056164,120]
[329997762,1718908254440,-151.0,0.00056164,120]
[329997763,1718908254450,-896.12,0.00056164,120]
[329997764,1718908254459,-500.0,0.00056164,120]
[329997765,1718908254469,-500.0,0.00056164,120]
[329997766,1718908254479,-1585.31,0.00056164,120]
[329997767,1718908254490,-6888.11,0.00056164,120]
[329997768,1718908254499,-513.47845303,0.00056164,120]
[329997769,1718908254508,-515.84280221,0.00056164,120]
[329997770,1718908254518,-500.0,0.00056164,120]
[329997771,1718908254528,-500.0,0.00056164,120]
[329997772,1718908254537,-6419.45,0.00056164,120]
[329997773,1718908254546,-500.0,0.00056164,120]
[329997774,1718908254556,-1347.64,0.00056164,120]
[329997775,1718908254565,-500.0,0.00056164,7]
[329997776,1718908254574,-500.0,0.00056164,120]
[329997777,1718908254583,-500.0,0.00056164,120]
[329997778,1718908254592,-151.0,0.00056164,120]
[329997779,1718908254602,-500.0,0.00056164,120]
[329997780,1718908254611,-500.0,0.00056164,120]
[329997781,1718908254620,-151.0,0.00056164,120]
[329997782,1718908254630,-4333.79,0.00056164,120]
[329997783,1718908254640,-500.0,0.00056164,120]